Cogmind - Beta 16 @@@ ROGUE MODE // 2025.11.20 @ 03:02:57 Player: BVrutally Odd Result: Destroyed by G-73 Enforcer with Phase Gun Performance ------------- Evolutions (7) 3500 Regions Visited (27) 5400 Robots Destroyed (592) 2960 Value Destroyed (30370) 30370 Prototype IDs (53) 1060 Alien Tech Used (0) 0 Bonus (16451) 16451 TOTAL SCORE: 59741 Bonus ------- High Alert Combat Kills 10499 Follower Combat Kills 1375 Destroyed Unchained 1000 Entered Garrisons 1400 Aligned with FarCom 300 Acquired ECA 300 Met Warlord at Base 500 MAIN.C Attacked Warlord 500 Warlord Defense Kills 600 Friendly Fire -23 Cogmind --------- Core Integrity 0/1300 Matter 119/300 Energy 79/100 System Corruption 0% Temperature Warning (358) Movement Core (50) Location -3/Research Parts ------- > --- POWER (2) -------- (None) > --- PROPULSION (6) --- (None) > --- UTILITY (8) ------ Experimental Armor Integrity Analyzer Graphene Brace (fused) > --- WEAPON (5) ------- (None) > --- INVENTORY (5) ---- Cooled Fission Core Reinforced Quantum Reactor Advanced Weapon Cycler Cooled Plasma Rifle Vortex Driver (20) Peak State ------------ > --- POWER ------------ Vortex Chain Reactor > --- PROPULSION ------- Heavy Siege Treads Wheel Centrium Wheel Centrium Wheel > --- UTILITY ---------- Advanced Heat Sink Huge Storage Unit Experimental Core Analyzer Experimental Armor Integrity Analyzer Advanced Kinecellerator Improved Weapon Cycler Advanced Remote Shield > --- WEAPON ----------- KE Penetrator KE Penetrator KE Penetrator Railgun RU-N14's Throwing Claymores v3 > --- INVENTORY -------- Antimatter Reactor Antimatter Reactor Improved Heavy Treads Improved Heavy Treads Improved Heavy Treads Experimental Energy Well Matter Compressor Matter Compressor Encrypted Comm Array Improved Weapon Cycler Advanced Transmission Jammer Layered Medium Armor Plating Advanced Shield Generator Improved Point Defense System Advanced System Shield Vortex Driver Hypervelocity Gauss Cannon Heavy Gauss Cannon RU-N14's Throwing Claymores v3 RU-N14's Throwing Claymores v3 Katana [Rating: 149] Favorites ----------- Power Light Nuclear Core Engine Improved Ion Engine Power Core Light Nuclear Core Reactor Vortex Chain Reactor Propulsion Light Treads Treads Light Treads Leg Enhanced Flexi-carbon Leg Wheel Centrium Wheel Flight Unit Xenon Bombardment Thruster Utility Huge Storage Unit Device Advanced Heat Sink Storage Huge Storage Unit Processor Advanced Targeting Computer Hackware Hacking Suite Protection Improved Medium Armor Plating Weapon Enhanced Autogun Energy Gun Gatling Laser Energy Cannon Vortex Driver Ballistic Gun Enhanced Autogun Ballistic Cannon Hypervelocity Gauss Cannon Launcher Long-range Missile Launcher Special Weapon RU-N14's Throwing Claymores v3 Slashing Weapon Ripper Build | -11 -10 -10 -10 -9 -8 -8 -8 -8 -7 -7 -7 -7 -6 -6 -6 -6 -5 -5 -5 -5 -4 -4 -4 -4 -4 -4 -3 ------- Run | Yrd Mat Min Exi Min Mat Gar Mat Gar Fac Gar Fac Gar Fac Gar Fac Gar Fac Upp Upp War Pro Fac Was Fac Gar Fac Res Slots Evolved 14 | . . . . . 4 . . . 2 . . . 2 . . . 2 . . . . 2 . . . . 2 Power 1 | . . . . . . . . . . . . . . . . . . . . . . 1 . . . . . Propulsion 4 | . . . . . 1 . . . . . . . 1 . . . . . . . . 1 . . . . 1 Utility 6 | . . . . . 1 . . . 2 . . . 1 . . . 1 . . . . . . . . . 1 Weapon 3 | . . . . . 2 . . . . . . . . . . . 1 . . . . . . . . . . Parts Attached 273 | 8 8 . . . 37 10 17 6 4 6 9 11 5 28 4 22 4 6 4 14 1 4 3 7 12 35 8 Power 24 | 1 1 . . . 1 2 2 1 . . 1 2 . 2 . 1 . 1 . 2 . 1 . . . 4 2 Engine 8 | 1 1 . . . 1 . 2 . . . 1 . . 1 . 1 . . . . . . . . . . . Core 7 | . . . . . . 2 . 1 . . . 1 . . . . . . . . . . . . . 3 . Reactor 9 | . . . . . . . . . . . . 1 . 1 . . . 1 . 2 . 1 . . . 1 2 Propulsion 85 | 2 1 . . . 14 2 10 2 1 . 2 3 1 12 2 7 . . . . . 2 2 4 . 15 3 Treads 64 | 2 1 . . . 14 2 10 2 . . 1 1 1 10 2 7 . . . . . 2 2 1 . 6 . Leg 8 | . . . . . . . . . . . . . . 2 . . . . . . . . . . . 6 . Wheel 10 | . . . . . . . . . 1 . 1 2 . . . . . . . . . . . 3 . 3 . Hover . | . . . . . . . . . . . . . . . . . . . . . . . . . . . . Flight 3 | . . . . . . . . . . . . . . . . . . . . . . . . . . . 3 Utility 70 | 2 3 . . . 7 1 1 2 2 1 4 2 3 4 1 6 3 3 3 7 1 1 1 . 5 6 1 Device 33 | 1 . . . . 3 . . . 2 1 2 . 1 2 . 3 2 3 2 4 1 . . . 2 3 1 Storage 9 | 1 2 . . . 1 . 1 . . . . 1 . 1 . 1 . . . 1 . . . . . . . Processor 6 | . . . . . . . . 2 . . . . . 1 . . . . . 2 . . . . 1 . . Hackware 3 | . . . . . . 1 . . . . . . 1 . . . . . . . . . . . . 1 . Protection 19 | . 1 . . . 3 . . . . . 2 1 1 . 1 2 1 . 1 . . 1 1 . 2 2 . Artifact . | . . . . . . . . . . . . . . . . . . . . . . . . . . . . Weapon 94 | 3 3 . . . 15 5 4 1 1 5 2 4 1 10 1 8 1 2 1 5 . . . 3 7 10 2 Energy Gun 7 | 2 . . . . 1 . . . . . . . . 1 1 1 . . . . . . . . . . 1 Energy Cannon 3 | . . . . . 2 . . . . . . . . . . . . . . 1 . . . . . . . Ballistic Gun 65 | 1 2 . . . 12 3 3 . 1 4 2 4 1 8 . 5 1 2 1 1 . . . 2 6 5 1 Ballistic Cannon 7 | . . . . . . . . . . . . . . 1 . 2 . . . . . . . . 1 3 . Launcher 1 | . . . . . . . . . . 1 . . . . . . . . . . . . . . . . . Special Weapon 6 | . 1 . . . . . . . . . . . . . . . . . . 3 . . . . . 2 . Impact Weapon . | . . . . . . . . . . . . . . . . . . . . . . . . . . . . Slashing Weapon 5 | . . . . . . 2 1 1 . . . . . . . . . . . . . . . 1 . . . Piercing Weapon . | . . . . . . . . . . . . . . . . . . . . . . . . . . . . Special Melee Weapon . | . . . . . . . . . . . . . . . . . . . . . . . . . . . . Unidentified Prototypes 17 | . . . . . 3 . . . . 1 . . . . . . . . . 9 . 1 . . . 2 1 Parts Lost 104 | . 2 . . 1 1 1 5 1 . 1 5 6 3 16 1 12 . 2 . . . . 1 1 5 31 9 Power 7 | . 1 . . . . . 1 . . . . 1 . 1 . . . . . . . . . . . 3 . Propulsion 37 | . . . . . . . 3 . . . 1 1 1 6 . 4 . . . . . . . 1 . 12 8 Utility 21 | . 1 . . 1 . . . 1 . 1 1 1 1 3 . 2 . 1 . . . . . . 2 5 1 Weapon 39 | . . . . . 1 1 1 . . . 3 3 1 6 1 6 . 1 . . . . 1 . 3 11 . Highest Loss Streak 23 | . 1 . . 1 1 1 2 1 . 1 2 2 1 5 1 5 . 1 . . . . 1 1 1 23 9 To Critical Strikes 2 | . . . . . . . . . . . . . . . . . . 1 . . . . . 1 . . . Average Backups 16 | . 7 10 12 12 11 11 17 19 19 19 18 18 18 19 21 18 19 19 20 19 19 20 20 18 20 19 5 Power 1 | . . . 2 3 2 2 2 2 2 2 2 1 1 1 2 2 2 2 2 1 1 1 1 2 2 2 1 Propulsion 4 | . 4 6 6 6 5 5 8 6 6 5 4 3 2 1 3 1 3 3 3 3 4 3 3 3 3 2 . Utility 4 | . 1 1 1 1 1 1 3 5 4 4 5 5 4 1 2 5 8 8 8 7 8 10 11 7 8 8 1 Weapon 5 | . 2 3 2 2 2 2 4 5 7 7 6 6 9 13 12 7 4 4 4 5 5 5 4 4 6 6 1 Tool/Special . | . . . . . . . . . . . . . . . . . . . . . . . . . . . . Unused Backups 41 | . 2 . . . 4 . 1 . . 3 1 2 . 3 3 5 . 1 1 4 . . . . 3 5 3 Power 8 | . . . . . 1 . . . . . . 2 . 1 . . . . . 1 . . . . . 2 1 Propulsion 8 | . 1 . . . . . . . . 2 1 . . 2 . 1 . . . . . . . . 1 . . Utility 14 | . . . . . 2 . 1 . . . . . . . . 2 . 1 . 2 . . . . 1 3 2 Weapon 9 | . 1 . . . 1 . . . . 1 . . . . 2 2 . . . 1 . . . . 1 . . Tool/Special 2 | . . . . . . . . . . . . . . . 1 . . . 1 . . . . . . . . Average Slot Usage (%) 91 | . 97 100 100 91 98 100 99 100 97 92 91 84 85 95 95 89 82 87 88 87 88 84 70 84 87 79 34 Engine 3 | . 12 14 14 14 9 . 3 6 . . 4 2 . 2 . . . . . . . . . . . . . Core 1 | . . . . . . 8 5 2 7 7 2 3 . . . . . . . . . . . . . 1 . Reactor 2 | . . . . . . . . . . . . . 6 3 6 6 5 5 5 5 5 5 5 5 5 4 . Treads 18 | . 27 28 28 28 26 27 26 27 18 7 6 11 13 22 26 22 11 11 11 11 11 15 14 11 5 4 . Wheel 2 | . . . . . . . . . 2 7 7 3 6 . . . . . . . . . . 4 15 12 . Device 11 | . 4 14 14 5 10 17 18 4 14 13 6 . 5 16 15 12 17 23 23 17 11 10 3 20 17 10 8 Storage 7 | . 14 14 14 14 9 9 9 9 7 7 7 7 6 6 8 6 5 5 5 5 5 5 5 5 5 4 . Processor 7 | . . . . . . . . 13 15 15 15 15 13 12 6 6 5 5 5 10 17 15 11 10 10 9 4 Protection 3 | . 8 . . . 6 . . . . 1 7 8 6 1 4 5 5 5 5 5 5 5 5 . 2 4 . Ballistic Gun 26 | . 25 28 28 28 35 33 34 32 23 28 27 29 25 24 25 20 17 19 23 21 23 21 16 20 23 20 . Ballistic Cannon 1 | . . . . . . . . . . . . . . . . 1 9 8 5 6 5 5 5 4 2 . . Slashing Weapon 1 | . . . . . . 2 1 3 7 1 2 . . 1 . . 1 . . . . . . . . 2 . Peak Build Rating 149 | 7 10 10 13 13 38 39 43 43 55 62 62 68 71 74 63 92 106 107 109 126 123 141 143 148 149 142 72 Average Rating 67 | 5 9 10 12 12 33 38 40 41 50 56 59 58 68 63 61 66 103 105 106 117 122 140 138 144 137 129 58 On Entrance 68 | . 7 10 10 13 12 38 38 43 41 55 59 60 62 65 60 61 92 106 105 108 123 123 141 136 147 133 71 Avg Prop Armor Cover (%) 10 | . . . . . . . . . 9 8 6 4 8 5 . . . . . . . . . 6 9 8 39 Naked Turns . | . . . . . . . . . . . . . . . . . . . . . . . . . . . . Heaviest Build 194 | 14 34 30 30 30 54 41 103 101 103 117 122 134 137 136 126 135 146 142 138 150 149 163 194 164 171 163 7 Greatest Support 177 | 40 40 40 40 40 60 60 60 60 60 28 28 103 28 123 80 150 150 150 150 150 150 177 177 167 70 150 25 Greatest Overweight (x) 6 | . . . . . 1 . 1 1 3 5 4 4 4 4 1 2 . . . . . 1 1 6 4 5 2 Average Overweight (x) 1 | . . . . . . . . 1 1 3 4 2 4 1 1 . . . . . . . . 1 3 2 . Largest Inventory Capacity 25 | 8 15 15 15 15 15 15 25 25 25 25 25 25 25 25 25 25 25 25 25 25 25 25 25 25 25 25 5 Average Capacity 21 | 7 12 15 15 15 15 15 24 25 25 25 25 25 25 25 25 25 25 25 25 25 25 25 25 25 25 24 5 Most Carried 25 | 1 11 10 15 15 15 15 25 25 25 25 25 25 24 25 25 25 25 25 25 25 25 25 25 25 25 25 5 Average Carried 20 | . 7 10 14 15 14 14 21 24 24 24 24 22 23 21 24 21 24 24 24 24 24 24 24 24 23 22 4 Final Capacity 25 | 8 15 15 15 15 15 15 25 25 25 25 25 25 25 25 25 25 25 25 25 25 25 25 25 25 25 5 5 Final Carried 25 | 1 10 10 15 15 15 15 25 25 25 24 23 25 21 25 24 25 25 25 24 25 25 25 25 25 25 5 5 Class Distribution -------------------- 30% | Scavenger-Gunner 25% | Scavenger-Skirmisher 21% | Scavenger-Tank 13% | Mutant 7% | Gunner Dominant Class ---------------- Mutant | -10/Materials Mutant | -10/Mines Mutant | -10/Exiles Mutant | -9/Mines Scavenger-Skirmisher | -8/Materials Scavenger-Skirmisher | -8/Garrison Scavenger-Skirmisher | -8/Materials Scavenger-Gunner | -8/Garrison Scavenger-Gunner | -7/Factory Gunner | -7/Garrison Gunner | -7/Factory Scavenger-Tank | -7/Garrison Scavenger-Gunner | -6/Factory Scavenger-Gunner | -6/Garrison Scavenger-Skirmisher | -6/Factory Scavenger-Skirmisher | -6/Garrison Scavenger-Tank | -5/Factory Scavenger-Tank | -5/Upper Caves Scavenger-Tank | -5/Upper Caves Scavenger-Tank | -5/Warlord Scavenger-Tank | -4/Proximity Caves Scavenger-Gunner | -4/Factory Scavenger-Tank | -4/Waste Scavenger-Gunner | -4/Factory Scavenger-Gunner | -4/Garrison Scavenger-Tank | -4/Factory Mutant | -3/Research Resources | -11 -10 -10 -10 -9 -8 -8 -8 -8 -7 -7 -7 -7 -6 -6 -6 -6 -5 -5 -5 -5 -4 -4 -4 -4 -4 -4 -3 ----------- Run | Yrd Mat Min Exi Min Mat Gar Mat Gar Fac Gar Fac Gar Fac Gar Fac Gar Fac Upp Upp War Pro Fac Was Fac Gar Fac Res Matter Collected 24641 | 352 518 . . 105 2266 927 1374 1115 30 1259 1270 1363 587 2183 124 1914 415 981 293 1317 738 441 713 351 2438 1462 105 Remotely . | . . . . . . . . . . . . . . . . . . . . . . . . . . . . Salvage Created 30302 | 163 781 . . 313 2937 834 2278 946 83 2197 1740 1481 966 2276 210 2502 718 1068 321 224 1055 1261 1653 620 2301 1374 . Parts 1408 | 14 63 . . 11 182 54 111 51 1 78 90 64 48 113 13 105 40 28 21 10 56 51 17 27 114 46 . Haulers Intercepted 14 | . 2 . . . 6 . 3 . . . 1 . . . . . 1 . . . . . . . . 1 . Recyclers Shooed 9 | . 1 . . . 1 . 2 . . . 1 . 1 . . . . . . . . 2 . 1 . . . Parts Field Recycled . | . . . . . . . . . . . . . . . . . . . . . . . . . . . . Retrieved Matter . | . . . . . . . . . . . . . . . . . . . . . . . . . . . . Parts Self-Destructed 101 | . . . . . . . . . . . . . . . . . . 26 17 . 58 . . . . . . Prevented 2 | . . . . . . . . . . . . . . . . . . . . . 2 . . . . . . Parts Restored . | . . . . . . . . . . . . . . . . . . . . . . . . . . . . Kills | -11 -10 -10 -10 -9 -8 -8 -8 -8 -7 -7 -7 -7 -6 -6 -6 -6 -5 -5 -5 -5 -4 -4 -4 -4 -4 -4 -3 ------- Run | Yrd Mat Min Exi Min Mat Gar Mat Gar Fac Gar Fac Gar Fac Gar Fac Gar Fac Upp Upp War Pro Fac Was Fac Gar Fac Res Combat Hostiles Destroyed 480 | . 16 . . 4 42 21 30 24 . 26 34 27 17 40 4 49 8 20 9 5 18 10 6 5 49 16 . Melee 7 | . . . . . . . 5 . . . 2 . . . . . . . . . . . . . . . . Guns 398 | . 16 . . 4 42 21 25 24 . 23 22 27 14 40 4 37 6 10 8 . 14 6 . 5 43 7 . Cannons 44 | . . . . . . . . . . . . . . . . 1 2 10 1 5 4 4 6 . 2 9 . AOE 31 | . . . . . . . . . . 3 10 . 3 . . 11 . . . . . . . . 4 . . Classes Destroyed 21 | 2 7 . . . 3 2 2 1 . . 1 1 . 1 . . . . . . . . 1 . . . . Worker 20 | . 2 . . . 4 . 5 . . . 2 . 3 . . . 2 . . . . . . . . 2 . Builder 13 | . 2 . . . 1 . . . . . 4 . . . . . 1 . . . . 3 . 2 . . . Tunneler 8 | 5 1 . . . 1 . 1 . . . . . . . . . . . . . . . . . . . . Hauler 14 | . 2 . . . 6 . 3 . . . 1 . . . . . 1 . . . . . . . . 1 . Recycler 32 | 1 1 . . . 8 . 6 . 1 . 4 . 2 . . . 2 . . . . 3 . 2 . 2 . Mechanic 2 | . . . . . . . . . . . 1 . . . . . . . . . . . . . . 1 . Operator 6 | . 1 . . . 1 . . . . . 1 . . . . . 1 . . . . . . 2 . . . Watcher 17 | . 3 . . . 4 . 2 . . . . . 1 . . . . . . . . 5 . . . 2 . Swarmer 130 | . 9 . . 3 12 6 5 12 . 7 . 10 7 3 1 13 5 3 5 . 4 . . . 25 . . Grunt 172 | . 7 . . 1 15 10 12 9 . 12 20 7 3 17 1 20 . 10 . . 9 7 . . 11 1 . Brawler 17 | . . . . . . . 1 . . 3 1 1 1 2 2 2 . 2 . . . . . . . 2 . Duelist 7 | . . . . . . 1 . . . . 3 . . 1 . . . . . 1 . . . . . 1 . Protector 6 | . . . . . . . 2 . . . 2 . . . . . . . . 1 . . . . . 1 . Sentry 54 | . . . . . 9 1 7 . . 2 2 . 2 9 . 5 2 2 . . 1 1 . 1 7 3 . Demolisher 3 | . . . . . . . . . . . . 1 . . . . . . . 2 . . . . . . . Specialist 10 | . . . . . 4 . . . . . . 2 . 3 . . . . . 1 . . . . . . . Hunter 28 | . . . . . . 3 2 1 . 1 2 3 . 2 . 2 1 3 2 . 2 . . 2 . 2 . Programmer 38 | . . . . . . . . 2 . 1 4 3 4 1 . 7 . . . . 2 2 . 2 5 5 . Heavy 3 | . . . . . 2 . 1 . . . . . . . . . . . . . . . . . . . . Behemoth 3 | . . . . . . . . . . . . . . 2 . . . . . . . . . . 1 . . Compactor 6 | . . . . . . . . . . . . . . . . . . . . . . . 6 . . . . Thug 2 | . . . . . . . . . . . . . . . . . . . 2 . . . . . . . . Best Kill Streak 15 | 2 5 . . 3 6 9 6 7 1 5 13 5 7 4 3 10 6 5 5 3 4 5 3 4 15 6 . Combat Bots Only 15 | . 3 . . 3 5 9 5 7 . 5 10 5 5 4 3 10 5 5 5 3 4 4 3 2 15 6 . Max Kills in Single Turn 4 | 1 2 . . 1 2 2 2 2 1 3 3 2 3 2 1 3 2 1 3 1 3 2 1 2 4 2 . Gunslinging 2 | . 1 . . . 1 1 1 1 . 1 1 1 1 1 . 1 1 . 1 . 2 1 . . 1 . . Exploded 4 | . . . . . . . . . . 3 3 . 2 . . 2 . . . . . . . . 4 . . Melee 1 | . . . . . . . 1 . . . 1 . . . . . . . . . . . . . . . . Uniques/NPCs Destroyed 1 | . . . . . . . . . . . . . . . . . . . . . . . . . . 1 . 6S-H0T (-4/Factory) Combat | -11 -10 -10 -10 -9 -8 -8 -8 -8 -7 -7 -7 -7 -6 -6 -6 -6 -5 -5 -5 -5 -4 -4 -4 -4 -4 -4 -3 -------- Run | Yrd Mat Min Exi Min Mat Gar Mat Gar Fac Gar Fac Gar Fac Gar Fac Gar Fac Upp Upp War Pro Fac Was Fac Gar Fac Res Hostile Shots Fired 2511 | . 81 . . 15 140 82 116 41 . 71 170 135 127 283 6 285 21 56 25 23 65 31 4 30 143 423 138 Missed 684 | . 15 . . 5 34 21 27 11 . 22 64 37 38 81 2 96 5 14 5 11 18 5 . 6 38 74 55 Hits 1827 | . 66 . . 10 106 61 89 30 . 49 106 98 89 202 4 189 16 42 20 12 47 26 4 24 105 349 83 Melee 34 | . . . . . . . 2 . . . 3 3 . . . . . 3 . . . . 4 . . 19 . Projectile 1793 | . 66 . . 10 106 61 87 30 . 49 103 95 89 202 4 189 16 39 20 12 47 26 . 24 105 330 83 AOE 6 | . . . . . . . . . . . . 4 1 . . . . . . 1 . . . . . . . Critical Strikes 80 | . . . . . 7 . 7 1 . . 3 1 2 1 . 2 . 2 1 . 1 4 2 2 6 35 3 Actively Blocked 36 | . . . . . . . . . . . . . . . . . . . . . . . . . . 33 3 Part Disruptions 1 | . . . . . . . . . . . . . . . . . . . . . . . . . . 1 . Damage Taken 28894 | . 644 . . 92 1643 687 1552 465 . 454 1526 1480 1248 2932 69 2343 198 580 249 138 680 478 145 346 1504 7215 2226 Core 3570 | . 115 . . 27 159 79 162 45 . 58 109 64 31 247 . 67 28 41 13 16 13 17 . 50 60 849 1320 Absorbed by Shields 2071 | . . . . . . 35 . 14 . 166 238 19 . . . 31 74 215 93 38 205 141 . 103 482 217 . Reduced by Siege Mode 223 | . . . . . . . . . . . . . . 104 . . . . . . 49 . . . 12 58 . Ignored by Resistances 210 | . . . . . 48 . . . . 7 . . . . . 155 . . . . . . . . . . . Regen/Repaired (Parts) 250 | . 67 . . . . . . . . . 115 . . . . . . . . 68 . . . . . . . Core Remaining (%) 55 | 100 . . . 43 . . . 19 . . . 67 . . . 59 . . . . 88 . . . . 15 . Volleys Fired 1367 | 24 73 . . 17 135 61 75 72 . 80 68 88 32 115 5 105 16 37 12 56 43 39 24 16 100 71 3 Largest 5 | 2 2 . . 2 4 4 4 4 . 4 4 4 4 4 4 4 5 5 5 2 5 5 2 5 5 5 1 Hottest 224 | 60 100 . . 46 100 106 106 106 . 118 118 116 116 132 164 179 186 193 170 102 178 178 102 185 185 224 72 Shots Fired 4363 | 46 140 . . 34 508 183 293 240 . 248 232 287 113 409 20 321 59 159 51 101 135 113 33 76 338 221 3 Gun 3936 | 46 135 . . 34 508 183 293 240 . 241 224 287 110 406 20 276 37 106 43 . 104 84 . 65 318 173 3 Cannon 384 | . . . . . . . . . . . . . . 2 . 37 22 53 8 100 31 29 33 11 19 39 . Launcher 27 | . . . . . . . . . . 7 8 . 3 1 . 8 . . . . . . . . . . . Special 16 | . 5 . . . . . . . . . . . . . . . . . . 1 . . . . 1 9 . Kinetic 4208 | 24 122 . . 34 508 183 293 240 . 241 224 287 110 405 19 249 59 159 51 100 135 113 31 76 337 208 . Thermal 82 | 22 18 . . . . . . . . . . . . . 1 38 . . . . . . . . . . 3 Explosive 37 | . . . . . . . . . . 7 8 . 3 1 . 8 . . . . . . . . 1 9 . Electromagnetic 29 | . . . . . . . . . . . . . . 3 . 26 . . . . . . . . . . . Entropic 6 | . . . . . . . . . . . . . . . . . . . . . . . 2 . . 4 . Robot Hit Streak 58 | 5 7 . . 6 18 8 13 17 . 33 18 33 17 40 8 58 14 16 7 10 16 15 7 14 26 16 1 Robot Miss Streak 10 | 4 5 . . 4 7 3 4 3 . 2 5 6 4 3 3 7 10 4 4 2 4 3 2 3 6 3 . Penetration Max 1 | . . . . . . 1 1 1 . 1 1 1 1 1 1 1 1 1 1 1 1 1 . 1 1 1 . Secondary Targets 105 | . 4 . . 1 9 4 2 8 . 7 8 9 4 11 2 8 2 . 3 . 6 1 . 1 14 1 . Max Gunslinging Chain 3 | . 1 . . 1 1 2 1 1 . 1 2 1 1 1 1 1 1 . 2 . 3 1 . 1 2 1 . Shots Hit Robots 2655 | 25 78 . . 19 284 79 174 134 1 175 150 178 79 284 13 253 39 96 27 24 78 84 21 41 188 130 1 Core Hits 1384 | 6 35 . . 8 110 41 80 50 1 87 95 80 46 127 12 194 35 73 20 9 46 43 9 21 104 52 . Critical Kills 73 | . . . . . 3 1 . 2 . 3 2 3 . 3 1 2 6 7 1 4 5 13 6 . 5 6 . Critical Parts Destroyed 88 | . . . . 1 3 1 3 2 . 4 3 . 1 3 . 8 . 8 . 14 4 11 3 4 3 12 . Critical Strikes 180 | . . . . 1 6 2 6 4 . 8 5 3 1 6 1 12 6 16 1 20 9 24 16 4 8 21 . Destroy 173 | . . . . 1 6 2 3 4 . 7 5 3 1 6 1 10 6 16 1 20 9 24 16 4 8 20 . Sever 7 | . . . . . . . 3 . . 1 . . . . . 2 . . . . . . . . . 1 . Melee Attacks 196 | . . . . . . 31 26 16 1 19 16 17 6 17 . 31 2 . . . . . . 2 . 12 . Impact . | . . . . . . . . . . . . . . . . . . . . . . . . . . . . Slashing 196 | . . . . . . 31 26 16 1 19 16 17 6 17 . 31 2 . . . . . . 2 . 12 . Piercing . | . . . . . . . . . . . . . . . . . . . . . . . . . . . . Sneak Attacks 7 | . . . . . . . 4 . 1 . 2 . . . . . . . . . . . . . . . . Combat Hostiles . | . . . . . . . . . . . . . . . . . . . . . . . . . . . . Follow-up Attacks . | . . . . . . . . . . . . . . . . . . . . . . . . . . . . Damage Inflicted 64203 | 288 1237 . . 289 5007 1414 3794 2373 74 4070 6154 3254 2145 5802 305 7524 749 1942 656 542 1893 2133 434 1683 5695 4694 52 Guns 49455 | 288 1185 . . 289 5001 1412 3013 2373 . 2641 3083 3130 1764 5758 305 4167 562 1605 596 . 1741 1576 . 1181 4921 2840 24 Cannons 3253 | . . . . . . . . . . . . . . 15 . 232 184 337 60 542 152 468 434 85 156 588 . Explosions 6738 | . . . . . . . . . . 245 2786 . 377 . . 1365 . . . . . . . 398 578 989 . Melee 4208 | . . . . . . . 752 . 74 1184 285 124 . 29 . 1760 . . . . . . . . . . . Ramming 195 | . . . . . 6 2 29 . . . . . 4 . . . 3 . . . . 89 . 19 . 15 28 Kinetic 51164 | 157 1110 . . 289 5001 1412 3013 2373 . 2641 3083 3130 1764 5773 305 3178 746 1942 656 542 1893 2044 434 1266 5077 3335 . Thermal 1714 | 131 127 . . . . . . . . . . . . . . 1034 . . . . . . . 398 . . 24 Explosive 6287 | . . . . . . . . . . 245 2786 . 377 . . 1312 . . . . . . . . 578 989 . Electromagnetic 240 | . . . . . . . . . . . . . . . . 240 . . . . . . . . . . . Impact . | . . . . . . . . . . . . . . . . . . . . . . . . . . . . Slashing 4510 | . . . . . . . 752 . 74 1184 285 124 . 29 . 1760 . . . . . . . . 40 262 . Piercing . | . . . . . . . . . . . . . . . . . . . . . . . . . . . . Entropic 93 | . . . . . . . . . . . . . . . . . . . . . . . . . . 93 . Highest Corruption 26 | . . . . . . . . . . . 4 9 2 4 4 5 . 3 3 3 . . 10 11 15 26 . Average Corruption 7 | . . . . . . . . . . . 3 8 1 3 4 4 . 3 3 3 . . 10 10 12 15 . Corruption Purged 5 | . . . . . . . . . . . . . . . . . . . . . . . . . . 5 . Corruption Blocked . | . . . . . . . . . . . . . . . . . . . . . . . . . . . . Effects 417 | . . . . . . . . . . . 26 71 7 47 3 47 . 5 7 1 . . 10 31 77 85 . Message Errors 87 | . . . . . . . . . . . 4 18 2 10 1 10 . 2 1 . . . 1 5 17 16 . Matter Fused 92 | . . . . . . . . . . . 6 14 1 12 1 14 . . 2 . . . . 11 16 15 . Heat Flow Errors 53 | . . . . . . . . . . . 3 10 1 7 . 3 . . 1 . . . 4 4 6 14 . Energy Discharges 39 | . . . . . . . . . . . 2 11 . 5 . . . . 1 . . . 2 4 10 4 . Parts Rejected 2 | . . . . . . . . . . . . . . . . . . . . . . . . . 1 1 . Parts Fused 8 | . . . . . . . . . . . . 2 . 2 . . . . . . . . 1 . 2 1 . Data Loss (minor) 41 | . . . . . . . . . . . 4 4 1 5 1 8 . 1 1 1 . . . 2 5 8 . Data Loss (major) 27 | . . . . . . . . . . . 2 2 . 3 . 5 . 1 . . . . . 3 8 3 . Misfires 26 | . . . . . . . . . . . 2 6 . 3 . 3 . . 1 . . . . 2 2 7 . Alerts 9 | . . . . . . . . . . . . 2 . . . 2 . . . . . . . . 1 4 . Misdirections 5 | . . . . . . . . . . . . . . . . . . . . . . . . . . 5 . Weapon Failures 28 | . . . . . . . . . . . 3 2 2 . . 2 . 1 . . . . 2 . 9 7 . Overload Shots 2 | . . . . . . . . . . . . . . . . . . . . . . . . . . . 2 Overflow Damage 551 | . 6 . . . . . 92 . . 20 86 . 51 . . 24 . 2 . . . . . 181 89 . . Projectiles 39 | . 6 . . . . . . . . . . . . . . . . 2 . . . . . 13 18 . . Explosions 376 | . . . . . . . . . . . 86 . 51 . . . . . . . . . . 168 71 . . Melee 136 | . . . . . . . 92 . . 20 . . . . . 24 . . . . . . . . . . . Knockbacks 16 | . . . . . . . . . . . . . . . . . . 2 . . . 5 . 2 2 5 . Impact 3 | . . . . . . . . . . . . . . . . . . . . . . 2 . 1 . . . Kinetic 11 | . . . . . . . . . . . . . . . . . . 2 . . . 2 . 1 2 4 . Secondary 2 | . . . . . . . . . . . . . . . . . . . . . . 1 . . . 1 . Self-Inflicted Damage 306 | . . . . . . . . . . 30 182 . 30 . . 51 . . . . . . . . . . 13 Shots 7 | . . . . . . . . . . 1 4 . 1 . . 1 . . . . . . . . . . . Rammed 24 | . . . . . 2 1 4 . . . . . 1 . . . 1 . . . . 7 . 2 . 2 4 Targets Rammed 25 | . . . . . 2 1 5 . . . . . 1 . . . 1 . . . . 7 . 2 . 2 4 Kicked . | . . . . . . . . . . . . . . . . . . . . . . . . . . . . Crushed 1 | . . . . . . . 1 . . . . . . . . . . . . . . . . . . . . Highest Temperature 432 | . 48 . . 1 322 150 367 351 . 40 368 432 264 239 . 163 122 204 94 150 351 297 324 267 258 432 404 Average Temperature 86 | . 16 . . 1 104 44 89 96 . 13 85 114 130 77 . 41 54 66 39 60 101 90 114 80 52 115 203 Received Heat Transfer 5836 | . 189 . . 24 621 126 549 141 . 126 394 81 381 819 18 561 12 75 26 21 177 138 . . 250 1008 99 Effects 26 | . . . . . 6 . 2 2 . . 1 3 1 . . . . . . . 3 . 3 . . 5 . Energy Bleed 7 | . . . . . 1 . 1 1 . . 1 2 1 . . . . . . . . . . . . . . Interference 15 | . . . . . 5 . 1 . . . . . . . . . . . . . 3 . 3 . . 3 . Short Circuit 2 | . . . . . . . . 1 . . . 1 . . . . . . . . . . . . . . . Damage (minor) 2 | . . . . . . . . . . . . . . . . . . . . . . . . . . 2 . Siege Activations 9 | . . . . . . . . . . . . . . 2 . . . . . . 4 1 . . 1 1 . Total Turns 156 | . . . . . . . . . . . . . . 47 . . . . . . 68 6 . . 12 23 . Longest Duration 29 | . . . . . . . . . . . . . . 29 . . . . . . 25 6 . . 12 23 . Martial Activations . | . . . . . . . . . . . . . . . . . . . . . . . . . . . . Shielding Activations . | . . . . . . . . . . . . . . . . . . . . . . . . . . . . Robots Disrupted . | . . . . . . . . . . . . . . . . . . . . . . . . . . . . Combat Hostiles . | . . . . . . . . . . . . . . . . . . . . . . . . . . . . Robots Corrupted . | . . . . . . . . . . . . . . . . . . . . . . . . . . . . Combat Hostiles . | . . . . . . . . . . . . . . . . . . . . . . . . . . . . Parts Fried 2 | . . . . . . . . . . . . . . . . . . . . 2 . . . . . . . Impact Corruptions . | . . . . . . . . . . . . . . . . . . . . . . . . . . . . Robots Melted . | . . . . . . . . . . . . . . . . . . . . . . . . . . . . Combat Hostiles . | . . . . . . . . . . . . . . . . . . . . . . . . . . . . Parts Melted 3 | . . . . . . . . . . . . . . . . . . 1 1 1 . . . . . . . Heat Transferred 3000 | 300 275 . . . . . . . . . . . . . . 2175 . . . . . . . 200 . . 50 Parts Sabotaged . | . . . . . . . . . . . . . . . . . . . . . . . . . . . . Parts Stolen . | . . . . . . . . . . . . . . . . . . . . . . . . . . . . Parts Stripped . | . . . . . . . . . . . . . . . . . . . . . . . . . . . . Power Chain Reactions 1 | . . . . . . . . . . . . . . . . 1 . . . . . . . . . . . Alert | -11 -10 -10 -10 -9 -8 -8 -8 -8 -7 -7 -7 -7 -6 -6 -6 -6 -5 -5 -5 -5 -4 -4 -4 -4 -4 -4 -3 ------- Run | Yrd Mat Min Exi Min Mat Gar Mat Gar Fac Gar Fac Gar Fac Gar Fac Gar Fac Upp Upp War Pro Fac Was Fac Gar Fac Res Maximum Alert Level 5 | . . . . . 3 4 3 5 3 5 4 5 4 5 4 5 4 . . . . . . . 5 4 2 Low Security (%) 20 | 100 100 100 . 100 30 . . . . . . . . . . . . . . . . 100 100 100 8 . . Level 1 3 | . . . . . 23 . . . . . . . . . . . . . . . . . . . 7 . 42 Level 2 10 | . . . . . 40 21 22 18 23 15 . . . . . . . . . . . . . . 5 . 57 Level 3 25 | . . . . . 5 42 77 35 76 31 79 13 . 3 . 5 . . . . . . . . 16 77 . Level 4 21 | . . . . . . 36 . 40 . 47 20 37 100 30 100 14 100 . . . . . . . 22 22 . Level 5 17 | . . . . . . . . 5 . 4 . 48 . 65 . 80 . . . . . . . . 39 . . High Security . | . . . . . . . . . . . . . . . . . . . . . . . . . . . . Max Security . | . . . . . . . . . . . . . . . . . . . . . . . . . . . . Peak Influence 2815 | 10 117 28 . 70 708 1356 972 1629 854 1666 1341 2506 1483 2815 1490 2463 1369 . . . . 101 28 171 2348 1232 515 Initial 1477 | . . 28 . . . 436 661 410 854 457 874 944 1315 1036 1477 1030 1292 . . . . . 26 . 97 1232 515 Average 953 | 1 30 5 . 16 378 958 787 1064 754 1071 939 1663 1271 1914 1471 1870 1296 . . . . 28 4 46 1347 984 408 Influence Increases 19052 | 30 526 . 21 135 1302 930 1005 1269 21 1219 1090 1702 598 1959 85 1573 247 546 163 415 400 361 6 334 2321 775 19 Destroy 0b10 Robot/C 10040 | . 320 . 20 80 840 480 580 600 . 520 640 760 340 880 80 980 160 420 140 200 360 200 . 100 1060 280 . Destroy 0b10 Robot/NC 760 | 30 60 . . 15 125 . 95 20 5 50 75 25 35 5 . 35 35 . . 15 . 55 . 30 5 45 . Destroy Leader 1382 | . 70 . . 10 220 20 180 40 . 50 152 70 92 60 . 70 32 40 20 . 40 40 . 30 70 76 . Allied During Kill 222 | . . . 1 . . 3 2 51 . . . 97 2 14 4 . . 11 3 20 . . . . 14 . . Successful Hack 291 | . 27 . . . 4 7 31 51 16 . 33 21 18 . . . 16 . . . . 24 . . 28 15 . Disable Machine 750 | . 30 . . . 105 30 75 15 . 45 90 45 45 30 . 15 . . . . . 15 . 60 90 60 . Anti-Garrison Action 3450 | . . . . . . 300 . 400 . 400 . 550 . 850 . 350 . . . . . . . . 600 . . Destroy Structure 1137 | . 4 . . . 8 45 12 47 . 154 70 74 36 75 1 93 4 . . . . 12 6 114 154 224 4 Partial Spotted 45 | . . . . . . . . . . . 15 15 15 . . . . . . . . . . . . . . Lose Combat Pursuer 975 | . 15 . . 30 . 45 30 45 . . 15 45 15 45 . 30 . 75 . 180 . 15 . . 300 75 15 Influence Decreases 18806 | 30 451 75 21 135 631 245 1729 272 997 206 1407 545 1623 625 1428 582 1361 848 456 974 595 284 83 195 112 2141 755 Entered New Map 11279 | . . 47 . . . 235 695 222 775 196 792 405 1191 445 1338 442 1171 500 200 754 195 . 51 . 42 1116 467 Time Decay 5692 | 30 441 28 6 135 621 . 664 . 222 . 565 . 362 . 60 . 190 318 206 190 390 284 32 185 . 565 198 Lost Part 1010 | . 10 . . . 10 10 50 10 . 10 50 60 30 160 10 120 . 20 . . . . . 10 50 310 90 Lost Ally 375 | . . . 15 . . . 20 40 . . . 80 40 20 20 20 . 10 50 30 10 . . . 20 . . Purge Threat 450 | . . . . . . . 300 . . . . . . . . . . . . . . . . . . 150 . Squads Dispatched 55 | . 1 . . . 5 . 7 . 2 . 13 . 6 . . . 3 . . . . 2 . 5 . 9 2 Investigation 7 | . . . . . . . . . . . 2 . 1 . . . . . . . . . . 2 . 2 . Extermination 11 | . . . . . . . . . . . 4 . 1 . . . . . . . . 1 . 1 . 3 1 Reinforcement 18 | . 1 . . . 5 . 3 . . . 3 . . . . . 1 . . . . 1 . 2 . 1 1 Assault 16 | . . . . . . . 4 . 2 . 3 . 2 . . . 2 . . . . . . . . 3 . Garrison 3 | . . . . . . . . . . . 1 . 2 . . . . . . . . . . . . . . Intercept . | . . . . . . . . . . . . . . . . . . . . . . . . . . . . Searches Triggered . | . . . . . . . . . . . . . . . . . . . . . . . . . . . . Unchained Authorized 2 | . . . . . . . . . . . . . . . . . . . . . . . . 1 . 1 . Construction Impeded 2 | . . . . . . . 1 . . . . . . . . . . . . . . . . 1 . . . Haulers Reinforced 1 | . . . . . . . . . . . 1 . . . . . . . . . . . . . . . . Active Scanning Responses . | . . . . . . . . . . . . . . . . . . . . . . . . . . . . Cargo Convoy Interrupts . | . . . . . . . . . . . . . . . . . . . . . . . . . . . . Stealth | -11 -10 -10 -10 -9 -8 -8 -8 -8 -7 -7 -7 -7 -6 -6 -6 -6 -5 -5 -5 -5 -4 -4 -4 -4 -4 -4 -3 --------- Run | Yrd Mat Min Exi Min Mat Gar Mat Gar Fac Gar Fac Gar Fac Gar Fac Gar Fac Upp Upp War Pro Fac Was Fac Gar Fac Res Distress Signals 16 | . 3 . . . 1 . 4 1 . . . . 2 . . . . . . 2 . 2 . . . 1 . Communications Jammed . | . . . . . . . . . . . . . . . . . . . . . . . . . . . . Distress Signals . | . . . . . . . . . . . . . . . . . . . . . . . . . . . . Times Spotted 668 | . 25 . . 5 49 24 41 26 1 23 47 38 29 44 6 41 8 22 10 61 18 22 6 8 58 38 18 Peak Tracking Total 12 | . 3 . . 2 4 5 6 4 1 5 10 5 6 6 3 5 3 7 5 9 4 5 2 2 8 9 12 Tactical Retreats 45 | . 1 . . 2 . 2 2 3 . . 1 1 1 3 . 1 . 2 . 6 . 1 . . 15 3 1 Traps | -11 -10 -10 -10 -9 -8 -8 -8 -8 -7 -7 -7 -7 -6 -6 -6 -6 -5 -5 -5 -5 -4 -4 -4 -4 -4 -4 -3 ------- Run | Yrd Mat Min Exi Min Mat Gar Mat Gar Fac Gar Fac Gar Fac Gar Fac Gar Fac Upp Upp War Pro Fac Was Fac Gar Fac Res Traps Triggered 51 | . . . . . 2 2 . 4 . 5 3 6 1 8 . 7 . . . . . 2 . . 11 . . Indirectly . | . . . . . . . . . . . . . . . . . . . . . . . . . . . . Trap Hack Attempts . | . . . . . . . . . . . . . . . . . . . . . . . . . . . . Triggered . | . . . . . . . . . . . . . . . . . . . . . . . . . . . . Disarmed . | . . . . . . . . . . . . . . . . . . . . . . . . . . . . Reprogrammed . | . . . . . . . . . . . . . . . . . . . . . . . . . . . . Reused . | . . . . . . . . . . . . . . . . . . . . . . . . . . . . Traps Extracted . | . . . . . . . . . . . . . . . . . . . . . . . . . . . . Installed . | . . . . . . . . . . . . . . . . . . . . . . . . . . . . Triggered . | . . . . . . . . . . . . . . . . . . . . . . . . . . . . Machines | -11 -10 -10 -10 -9 -8 -8 -8 -8 -7 -7 -7 -7 -6 -6 -6 -6 -5 -5 -5 -5 -4 -4 -4 -4 -4 -4 -3 ---------- Run | Yrd Mat Min Exi Min Mat Gar Mat Gar Fac Gar Fac Gar Fac Gar Fac Gar Fac Upp Upp War Pro Fac Was Fac Gar Fac Res Machines Disabled 98 | . 2 . . . 7 6 5 6 . 12 6 9 3 7 . 5 . 1 . 3 . 1 . 4 17 4 . Max in Single Turn 4 | . 1 . . . 1 1 2 1 . 2 4 2 1 1 . 2 . 1 . 1 . 1 . 4 1 1 . Garrison Access 3 | . . . . . . . . . . . . . . . . . 1 . . . . 1 . . . . 1 Garrison Relay 29 | . . . . . . 4 . 4 . 4 . 4 . 3 . 2 . . . . . . . . 8 . . Phase Generator 4 | . . . . . . . . . . 1 . 1 . . . 1 . . . . . . . . 1 . . Machines Repaired . | . . . . . . . . . . . . . . . . . . . . . . . . . . . . Machines Dismantled 1 | . . . . . . . . . . . . . . . . . . . . 1 . . . . . . . Machines Sabotaged . | . . . . . . . . . . . . . . . . . . . . . . . . . . . . Overloaded Fab Kills . | . . . . . . . . . . . . . . . . . . . . . . . . . . . . Hacking | -11 -10 -10 -10 -9 -8 -8 -8 -8 -7 -7 -7 -7 -6 -6 -6 -6 -5 -5 -5 -5 -4 -4 -4 -4 -4 -4 -3 --------- Run | Yrd Mat Min Exi Min Mat Gar Mat Gar Fac Gar Fac Gar Fac Gar Fac Gar Fac Upp Upp War Pro Fac Was Fac Gar Fac Res Machines Accessed 99 | . 8 . 3 . 8 3 11 4 3 1 9 3 5 3 1 1 3 . . 3 . 5 . 8 4 10 3 Terminals 58 | . 6 . . . 6 3 8 4 . 1 3 3 3 3 . 1 1 . . . . . . 4 4 8 . Fabricators 6 | . . . . . . . . . 1 . 2 . . . . . . . . . . . . 2 . 1 . Repair Stations 5 | . 1 . . . . . . . . . 1 . . . . . . . . . . 2 . . . 1 . Recycling Units 7 | . 1 . . . . . 1 . . . 1 . . . . . 1 . . . . 1 . 1 . . 1 Scanalyzers 6 | . . . . . 1 . 1 . 1 . 1 . . . . . . . . . . 1 . . . . 1 Garrison Access 11 | . . . . . 1 . 1 . 1 . 1 . 2 . 1 . 1 . . . . 1 . 1 . . 1 Total Hacks 214 | . 27 . 18 . 13 5 24 4 5 1 17 4 13 8 3 2 5 . . 8 . 10 . 16 7 21 3 Successful 101 | . 16 . 18 . 7 2 15 4 3 . 5 2 2 . 1 . 2 . . 8 . 4 . 4 2 5 1 Failed 113 | . 11 . . . 6 3 9 . 2 1 12 2 11 8 2 2 3 . . . . 6 . 12 5 16 2 Catastrophic 25 | . . . . . 2 1 3 . . . 1 . 1 2 . . 1 . . . . . . 3 3 7 1 Database Lockouts . | . . . . . . . . . . . . . . . . . . . . . . . . . . . . Manual 56 | . 18 . 1 . . . 12 . . . 4 . 7 . . . . . . . . . . 2 . 12 . Terminals 125 | . 23 . . . 7 5 19 4 . 1 6 4 10 8 . 2 1 . . . . . . 10 7 18 . Fabricators 9 | . . . . . . . . . 2 . 4 . . . . . . . . . . . . 2 . 1 . Repair Stations 11 | . 2 . . . . . . . . . 2 . . . . . . . . . . 5 . . . 2 . Recycling Units 9 | . 2 . . . . . 1 . . . 1 . . . . . 1 . . . . 1 . 2 . . 1 Scanalyzers 13 | . . . . . 3 . 3 . 2 . 2 . . . . . . . . . . 2 . . . . 1 Garrison Access 21 | . . . . . 3 . 1 . 1 . 2 . 3 . 3 . 3 . . . . 2 . 2 . . 1 Terminal Hacks 56 | . 4 . 18 . 5 2 7 4 . . 1 2 . . . . 1 . . 8 . . . . 2 2 . Record 19 | . . . 17 . . . . . . . . . . . . . . . . 2 . . . . . . . Robot Analysis 2 | . 1 . . . 1 . . . . . . . . . . . . . . . . . . . . . . Prototype ID Bank 6 | . 1 . . . . . . . . . . . . . . . . . . 5 . . . . . . . Open Door 4 | . . . . . . 1 . 1 . . . 1 . . . . . . . 1 . . . . . . . Branch Access Points 3 | . . . . . . . 1 . . . 1 . . . . . 1 . . . . . . . . . . Emergency Access Points 3 | . . . . . . 1 . 1 . . . 1 . . . . . . . . . . . . . . . Terminal Index 1 | . . . . . . . 1 . . . . . . . . . . . . . . . . . . . . Alert Level 1 | . . . . . . . . . . . . . . . . . . . . . . . . . . 1 . Unreport Threat 3 | . . . . . . . 2 . . . . . . . . . . . . . . . . . . 1 . Locate Traps 5 | . . . . . 3 . 2 . . . . . . . . . . . . . . . . . . . . Hauler Manifests 2 | . . . . . 1 . 1 . . . . . . . . . . . . . . . . . . . . Zone Layout 2 | . 2 . . . . . . . . . . . . . . . . . . . . . . . . . . Garrison Registry 1 | . . . . . . . . . . . . . . . . . . . . . . . . . 1 . . Patrol Navigation 2 | . . . . . . . . 1 . . . . . . . . . . . . . . . . 1 . . Security Stations 1 | . . . . . . . . 1 . . . . . . . . . . . . . . . . . . . Proto ID Catalog 1 | . . . 1 . . . . . . . . . . . . . . . . . . . . . . . . Fabricator Hacks 3 | . . . . . . . . . 1 . . . . . . . . . . . . . . 2 . . . Network Status 3 | . . . . . . . . . 1 . . . . . . . . . . . . . . 2 . . . Repair Station Hacks 3 | . 2 . . . . . . . . . . . . . . . . . . . . 1 . . . . . Scan Component 2 | . 1 . . . . . . . . . . . . . . . . . . . . 1 . . . . . Repair 1 | . 1 . . . . . . . . . . . . . . . . . . . . . . . . . . Recycling Unit Hacks 4 | . . . . . . . 1 . . . 1 . . . . . . . . . . 1 . 1 . . . Retrieve Components 4 | . . . . . . . 1 . . . 1 . . . . . . . . . . 1 . 1 . . . Scanalyzer 7 | . . . . . 1 . 3 . 1 . 1 . . . . . . . . . . 1 . . . . . Retrieve Study 7 | . . . . . 1 . 3 . 1 . 1 . . . . . . . . . . 1 . . . . . Garrison Access Hacks 11 | . . . . . 1 . 1 . 1 . 1 . 2 . 1 . 1 . . . . 1 . 1 . . 1 Unlock Access 8 | . . . . . 1 . 1 . 1 . 1 . 2 . 1 . . . . . . . . 1 . . . Seal Access 3 | . . . . . . . . . . . . . . . . . 1 . . . . 1 . . . . 1 Unauthorized Hacks 17 | . 10 . . . . . 3 . . . 1 . . . . . . . . . . . . . . 3 . Terminals 16 | . 10 . . . . . 3 . . . . . . . . . . . . . . . . . . 3 . Botnet 9 | . 4 . . . . . 3 . . . . . . . . . . . . . . . . . . 2 . Operators 2 | . 1 . . . . . . . . . . . . . . . . . . . . . . . . 1 . Skim 5 | . 5 . . . . . . . . . . . . . . . . . . . . . . . . . . Fabricators . | . . . . . . . . . . . . . . . . . . . . . . . . . . . . Repair Stations 1 | . . . . . . . . . . . 1 . . . . . . . . . . . . . . . . Patch 1 | . . . . . . . . . . . 1 . . . . . . . . . . . . . . . . Recycling Units . | . . . . . . . . . . . . . . . . . . . . . . . . . . . . Scanalyzers . | . . . . . . . . . . . . . . . . . . . . . . . . . . . . Garrison Access . | . . . . . . . . . . . . . . . . . . . . . . . . . . . . Data Cores Recovered 1 | . . . . . . . . . . . . . . . . . 1 . . . . . . . . . . Used . | . . . . . . . . . . . . . . . . . . . . . . . . . . . . Hacking Detections 71 | . 7 . . . 3 2 8 1 3 1 7 3 4 3 1 1 2 . . . . 3 . 7 3 10 2 Full Trace Events 9 | . . . . . . . . . . . 1 . 1 2 . . . . . . . . . 2 1 2 . Feedback Events 1 | . . . . . . . . . . . . . . 1 . . . . . . . . . . . . . Corruption 1 | . . . . . . . . . . . . . . 1 . . . . . . . . . . . . . Feedback Blocked . | . . . . . . . . . . . . . . . . . . . . . . . . . . . . Robot Schematics Acquired . | . . . . . . . . . . . . . . . . . . . . . . . . . . . . Robots Built . | . . . . . . . . . . . . . . . . . . . . . . . . . . . . Authchips . | . . . . . . . . . . . . . . . . . . . . . . . . . . . . Time . | . . . . . . . . . . . . . . . . . . . . . . . . . . . . Total Robot Build Rating . | . . . . . . . . . . . . . . . . . . . . . . . . . . . . Part Schematics Acquired . | . . . . . . . . . . . . . . . . . . . . . . . . . . . . Parts Built . | . . . . . . . . . . . . . . . . . . . . . . . . . . . . Authchips . | . . . . . . . . . . . . . . . . . . . . . . . . . . . . Time . | . . . . . . . . . . . . . . . . . . . . . . . . . . . . Total Part Build Rating . | . . . . . . . . . . . . . . . . . . . . . . . . . . . . Part Studies Acquired 6 | . . . . . . . 3 . 1 . 1 . . . . . . . . . . 1 . . . . . Parts Repaired 1 | . 1 . . . . . . . . . . . . . . . . . . . . . . . . . . Time 26 | . 26 . . . . . . . . . . . . . . . . . . . . . . . . . . Parts Recycled . | . . . . . . . . . . . . . . . . . . . . . . . . . . . . Recycled Matter . | . . . . . . . . . . . . . . . . . . . . . . . . . . . . Retrieved Matter . | . . . . . . . . . . . . . . . . . . . . . . . . . . . . Retrieved Components 17 | . . . . . . . 5 . . . 3 . . . . . . . . . . 9 . . . . . Parts Scanalyzed . | . . . . . . . . . . . . . . . . . . . . . . . . . . . . Part Schematics Acquired . | . . . . . . . . . . . . . . . . . . . . . . . . . . . . Parts Damaged . | . . . . . . . . . . . . . . . . . . . . . . . . . . . . Bothacking | -11 -10 -10 -10 -9 -8 -8 -8 -8 -7 -7 -7 -7 -6 -6 -6 -6 -5 -5 -5 -5 -4 -4 -4 -4 -4 -4 -3 ------------ Run | Yrd Mat Min Exi Min Mat Gar Mat Gar Fac Gar Fac Gar Fac Gar Fac Gar Fac Upp Upp War Pro Fac Was Fac Gar Fac Res Used RIF Installer . | . . . . . . . . . . . . . . . . . . . . . . . . . . . . Robots Hacked 1 | . . . . . . . . . . . . . . . . . . . . 1 . . . . . . . Non-combat . | . . . . . . . . . . . . . . . . . . . . . . . . . . . . Combat 1 | . . . . . . . . . . . . . . . . . . . . 1 . . . . . . . Robot Hacks Applied 1 | . . . . . . . . . . . . . . . . . . . . 1 . . . . . . . parse_system 1 | . . . . . . . . . . . . . . . . . . . . 1 . . . . . . . Relay Couplers Released 119 | . . . . . . 15 . 16 . 19 . 17 . 14 . 7 . . . . . . . . 31 . . Machine Destruction 119 | . . . . . . 15 . 16 . 19 . 17 . 14 . 7 . . . . . . . . 31 . . Fabnet Peak Effective % . | . . . . . . . . . . . . . . . . . . . . . . . . . . . . Robots Rewired 13 | . . . . . . . . 3 . . . 6 . 2 . . . 2 . . . . . . . . . Allies Hacked 1 | . . . . . . . . . . . . . 1 . . . . . . . . . . . . . . Hacks Repelled . | . . . . . . . . . . . . . . . . . . . . . . . . . . . . Allies | -11 -10 -10 -10 -9 -8 -8 -8 -8 -7 -7 -7 -7 -6 -6 -6 -6 -5 -5 -5 -5 -4 -4 -4 -4 -4 -4 -3 -------- Run | Yrd Mat Min Exi Min Mat Gar Mat Gar Fac Gar Fac Gar Fac Gar Fac Gar Fac Upp Upp War Pro Fac Was Fac Gar Fac Res Total Allies 19 | . . 3 . . . 1 . 3 . . . 8 . 2 . . . 2 . . . . . . . . . Largest Group 6 | . . 3 3 . . 1 1 3 . . . 6 2 2 2 1 . 2 2 . . . . . . . . Highest-Rated Group 176 | . . 40 40 . . 25 25 95 . . . 176 59 71 71 30 . 78 78 . . . . . . . . Highest-Rated Ally 49 | . . 16 16 . . 25 25 39 . . . 43 39 41 41 30 . 49 49 . . . . . . . . Initial Warlord ECA Mod 65 | . . . . . . . 10 10 17 17 29 29 37 37 44 44 50 50 50 50 49 49 49 49 49 65 64 Total Orders 42 | . . . . . . . . 2 . . . . . . . . . 10 8 6 16 . . . . . . STAY 1 | . . . . . . . . 1 . . . . . . . . . . . . . . . . . . . ROAM 1 | . . . . . . . . . . . . . . . . . . . . 1 . . . . . . . FOLLOW 1 | . . . . . . . . 1 . . . . . . . . . . . . . . . . . . . EXPLORE 24 | . . . . . . . . . . . . . . . . . . 6 5 4 9 . . . . . . RETURN 15 | . . . . . . . . . . . . . . . . . . 4 3 1 7 . . . . . . Ally Attacks 188 | . . . 4 . . 6 1 42 . . . 51 4 21 2 . . 11 11 24 . . . . 11 . . Total Damage 5599 | . . . 31 . . 181 30 648 . . . 1166 112 1076 57 . . 253 310 1174 . . . . 561 . . Kills 45 | . . . 1 . . 3 1 7 . . . 13 1 4 . . . 1 2 8 . . . . 4 . . Allies Corrupted 1 | . . . . . . . . . . . . . . . 1 . . . . . . . . . . . . Allies Melted 1 | . . . . . . . . . . . . . . . . . . . . 1 . . . . . . . Turrets Deployed 3 | . . . . . . . . . . . . . . 1 . . . . . 1 . . . . 1 . . Intel | -11 -10 -10 -10 -9 -8 -8 -8 -8 -7 -7 -7 -7 -6 -6 -6 -6 -5 -5 -5 -5 -4 -4 -4 -4 -4 -4 -3 ------- Run | Yrd Mat Min Exi Min Mat Gar Mat Gar Fac Gar Fac Gar Fac Gar Fac Gar Fac Upp Upp War Pro Fac Was Fac Gar Fac Res Active Infowar (turns) 2130 | 51 780 208 941 150 . . . . . . . . . . . . . . . . . . . . . . . Seismic 2130 | 51 780 208 941 150 . . . . . . . . . . . . . . . . . . . . . . . Robot Analysis Total 2 | . 1 . . . 1 . . . . . . . . . . . . . . . . . . . . . . Derelict Logs Recovered 2 | . . . . . . . . . . . . . . . . . . 1 . . 1 . . . . . . Drone Launches 38 | . . . . . . . . . . . . . . . . . . 12 9 . 17 . . . . . . Drone Recoveries 34 | . . . . . . . . . . . . . . . . . . 11 4 3 16 . . . . . . Exploration | -11 -10 -10 -10 -9 -8 -8 -8 -8 -7 -7 -7 -7 -6 -6 -6 -6 -5 -5 -5 -5 -4 -4 -4 -4 -4 -4 -3 ------------- Run | Yrd Mat Min Exi Min Mat Gar Mat Gar Fac Gar Fac Gar Fac Gar Fac Gar Fac Upp Upp War Pro Fac Was Fac Gar Fac Res Turns Passed 34611 | 189 2342 208 941 372 3415 1563 2533 1901 473 1279 1689 2186 837 2659 128 1867 390 713 427 1659 1072 927 296 695 1747 1686 417 Spaces Moved 14984 | 72 799 127 260 148 1332 788 939 763 256 593 786 865 426 1010 47 688 185 333 228 696 445 388 102 342 892 873 601 Core 607 | 9 . . . . . . . . . . . . . . . . . . . . . . . . . 21 577 Treads 10042 | 63 799 127 260 148 1332 788 939 763 156 1 . 391 . 917 47 688 185 333 228 696 445 388 102 232 . 14 . Legs 24 | . . . . . . . . . . . . . . . . . . . . . . . . . . 15 9 Wheels 4296 | . . . . . . . . . 100 592 786 474 426 93 . . . . . . . . . 110 892 823 . Hover . | . . . . . . . . . . . . . . . . . . . . . . . . . . . . Flight 15 | . . . . . . . . . . . . . . . . . . . . . . . . . . . 15 Fastest Speed 40 | 50 160 160 160 160 160 163 163 203 145 145 160 145 160 160 200 160 160 160 160 160 160 163 163 140 140 50 40 Average Speed 167 | 146 160 160 160 160 162 163 233 203 180 148 160 195 160 201 200 190 160 160 160 160 160 163 215 168 140 146 51 Slowest Speed 370 | 160 160 160 160 160 245 163 243 203 203 370 160 240 160 285 200 240 160 160 160 160 160 245 243 240 158 330 150 Overloaded Moves . | . . . . . . . . . . . . . . . . . . . . . . . . . . . . Propulsion Burnouts . | . . . . . . . . . . . . . . . . . . . . . . . . . . . . Robots Hopped 7 | . . . . . . . . . . . . . . 4 . . . . . . . . . . . . 3 Potential Cave-ins . | . . . . . . . . . . . . . . . . . . . . . . . . . . . . Cave-ins Triggered . | . . . . . . . . . . . . . . . . . . . . . . . . . . . . Exploration Rate (%) 53 | 5 90 41 62 20 93 88 76 90 9 82 30 92 13 70 2 83 7 51 70 94 85 14 83 12 93 28 10 Regions Visited 27 Branch Regions 7 Pre-discovered Areas 1 | . . . . . . . . . . . . . . . . . . 1 . . . . . . . . . Known Exits Taken 10 | . 1 1 . . 1 . 1 . 1 . 1 . 1 . 1 . 1 . . . . . . 1 . . . Unknown Exits Taken 8 | 1 . . 1 1 . . . . . . . . . . . . . 1 1 1 1 . . . . 1 . Scrap Searched 10 | . . . . 1 . . . . . . . . . . . . . 3 3 . 3 . . . . . . Spaces Dug 269 | . 3 . . . . 5 4 15 . 45 36 63 20 14 . 8 2 . . 5 1 . 4 2 3 37 2 Terrain Destroyed 920 | . 3 . . . . 5 7 17 . 260 80 72 34 29 1 77 2 9 4 5 16 3 4 55 86 149 2 Melee 74 | . . . . . . 5 4 10 . 1 8 10 5 11 . 6 2 . . . . . . 2 . 10 . Projectile 207 | . 3 . . . . . 3 7 . 10 10 9 4 8 1 4 . 9 3 . 15 3 4 38 24 50 2 AOE 627 | . . . . . . . . . . 249 61 53 25 9 . 67 . . . . . . . 15 59 89 . Terrain Rammed . | . . . . . . . . . . . . . . . . . . . . . . . . . . . . Walls Destroyed . | . . . . . . . . . . . . . . . . . . . . . . . . . . . . Machines Disabled . | . . . . . . . . . . . . . . . . . . . . . . . . . . . . Actions | -11 -10 -10 -10 -9 -8 -8 -8 -8 -7 -7 -7 -7 -6 -6 -6 -6 -5 -5 -5 -5 -4 -4 -4 -4 -4 -4 -3 --------- Run | Yrd Mat Min Exi Min Mat Gar Mat Gar Fac Gar Fac Gar Fac Gar Fac Gar Fac Upp Upp War Pro Fac Was Fac Gar Fac Res Total 21885 | 106 1709 132 786 249 2402 959 1170 996 267 835 1058 1177 501 1363 72 976 248 445 274 1142 722 628 149 426 1234 1152 707 Wait 4226 | 2 803 6 520 85 846 57 79 54 . 83 143 126 21 124 6 67 32 46 18 330 224 185 5 39 136 107 82 Move 14949 | 71 798 126 259 147 1331 787 939 762 256 592 786 864 426 1000 47 687 184 332 227 695 444 388 101 342 891 872 595 Hop 7 | . . . . . . . . . . . . . . 4 . . . . . . . . . . . . 3 Pick Up 166 | 1 12 . 6 . 9 2 11 3 3 4 4 8 2 26 2 20 4 3 2 10 1 1 2 6 11 11 2 Fast Attach 83 | 7 2 . . . 6 1 1 . 1 . 1 5 . 6 1 6 . 1 . 5 . 2 4 5 5 17 7 Attach 101 | . 1 . . . 3 2 4 2 2 1 5 6 4 15 1 11 4 1 . 3 1 2 1 4 4 22 2 Detach 16 | . . . . . . . . . . . . 3 . . . . . . . 1 . 1 2 1 1 5 2 Swap 269 | 1 14 . . . 38 10 19 13 1 20 15 7 8 27 2 17 3 6 5 17 8 1 3 3 12 19 . Drop 207 | . 6 . 1 . 32 6 11 5 3 9 4 6 . 13 8 20 2 5 8 17 1 2 7 6 14 14 7 Fire 1367 | 24 73 . . 17 135 61 75 72 . 80 68 88 32 115 5 105 16 37 12 56 43 39 24 16 100 71 3 Melee 196 | . . . . . . 31 26 16 1 19 16 17 6 17 . 31 2 . . . . . . 2 . 12 . Ram 5 | . . . . . . . . . . . . . 1 . . . . . . . . . . . . . 4 Kick . | . . . . . . . . . . . . . . . . . . . . . . . . . . . . Crush 20 | . . . . . 2 1 5 . . . . . . . . . 1 . . . . 7 . 2 . 2 . Escape Stasis 147 | . . . . . . 1 . 5 . 27 16 16 . 10 . 12 . . . . . . . . 60 . . Rewire 116 | . . . . . . . . 64 . . . 31 1 6 . . . 14 . . . . . . . . . Trap . | . . . . . . . . . . . . . . . . . . . . . . . . . . . . Miscellaneous 10 | . . . . . . . . . . . . . . . . . . . 2 8 . . . . . . . Route ------- -11/Scrapyard -10/Materials (discovered 6 exits: *Mat x3 / *Min x2 / *Sub) -10/Mines (discovered 4 exits: Mat x2 / *Exi / Sub) -10/Exiles -9/Mines (discovered 2 exits: *Mat x2) -8/Materials (discovered 4 exits: *Fac x3 / Gar) -8/Garrison (discovered 3 exits: *Mat x3) -8/Materials (discovered 2 exits: *Fac / Gar) -8/Garrison (discovered 3 exits: *Fac x3) -7/Factory -7/Garrison (discovered 3 exits: *Fac x3) -7/Factory (discovered 4 exits: *Fac / Low x2 / Gar) -7/Garrison (discovered 3 exits: *Fac x3) -6/Factory (discovered 3 exits: *Fac / Gar / Gar) -6/Garrison (discovered 4 exits: *Fac x4) -6/Factory -6/Garrison (discovered 3 exits: *Fac x3) -5/Factory (discovered 2 exits: *Upp x2) -5/Upper Caves -5/Upper Caves (discovered 2 exits: *Fac / *War) -5/Warlord -4/Proximity Caves -4/Factory -4/Waste -4/Factory (discovered 2 exits: *Res / Gar) -4/Garrison (discovered 3 exits: *Fac x3) -4/Factory -3/Research (discovered 1 exit: Arm) History --------- Turn | Location | Event 6 | -11/Scrapyard | Discovered new exit (range 15) 190 | -11/Scrapyard | Entered Materials 305 | -10/Materials | Build established: Mutant 528 | -10/Materials | Discovered new exit (range 15) 981 | -10/Materials | Discovered new exit (range 8) 997 | -10/Materials | Discovered new exit (range 16) 1046 | -10/Materials | Repaired Lgt. Treads 1259 | -10/Materials | Discovered new exit (range 17) 2307 | -10/Materials | Discovered new exit (range 12) 2354 | -10/Materials | Learned location of 2 exits from Mines 2387 | -10/Materials | Learned location of 1 exit from Recycling 2421 | -10/Materials | Identified exit to Materials 2423 | -10/Materials | Learned 4 Recycling zone layouts 2424 | -10/Materials | Loaded intel: 22 trap records 2425 | -10/Materials | Identified exit to Subcaves 2425 | -10/Materials | Identified exit to Mines 2429 | -10/Materials | Learned 2 Materials zone layouts 2441 | -10/Materials | Learned Storage trap positions 2532 | -10/Materials | Entered Mines 2534 | -10/Mines | Identified exit to Exiles 2598 | -10/Mines | Assisted by bots powering up and referring to "LRC-V3" 2724 | -10/Mines | Deemed a non-threat by the Exiles lab entrance 2740 | -10/Mines | Entered Exiles 2740 | -10/Exiles | Accompanied by 3 allies 2783 | -10/Exiles | Met 8R-AWN 2809 | -10/Exiles | Met EX-HEX 2852 | -10/Exiles | Met EX-BIN 2876 | -10/Exiles | Aligned with FarCom system 2878 | -10/Exiles | Given EX-Vault access code 2945 | -10/Exiles | Opened EX-Vault 2956 | -10/Exiles | Found Deploy-a-Sentry 2959 | -10/Exiles | Found Deploy-a-Sentry 2962 | -10/Exiles | Found Deploy-a-Sentry 2993 | -10/Exiles | Warned to stay clear of 0b10 Research branches 3014 | -10/Exiles | Exiles lab attacked by MAIN.C 3180 | -10/Exiles | Discovered new exit (range 10) 3681 | -10/Exiles | Left Exiles lab with Deploy-a-Sentry 3681 | -10/Exiles | Entered Mines 3688 | -9/Mines | Core integrity fell below 50% 3759 | -9/Mines | Discovered new exit (range 2) 3786 | -9/Mines | Discovered new exit (range 6) 4053 | -9/Mines | Entered Materials 4053 | -8/Materials | Evolved 4 slots: Propulsion x1, Utility x1, Weapon x2 4420 | -8/Materials | Discovered new exit (range 9) 4763 | -8/Materials | Build established: Scavenger-Skirmisher 5099 | -8/Materials | Discovered new exit (range 16) 5688 | -8/Materials | Discovered new exit (range 13) 6783 | -8/Materials | Identified exit to Garrison 7468 | -8/Materials | Entered Garrison 7628 | -8/Garrison | Triggered checkpoint 7631 | -8/Garrison | Destroyed 9 combat bots 7685 | -8/Garrison | Discovered new exit (range 12) 7764 | -8/Garrison | Triggered checkpoint 7843 | -8/Garrison | Garrison Relay disabled 7936 | -8/Garrison | Triggered checkpoint 8029 | -8/Garrison | Discovered new exit (range 8) 8082 | -8/Garrison | Triggered checkpoint 8108 | -8/Garrison | Garrison Relay disabled 8172 | -8/Garrison | Triggered checkpoint 8301 | -8/Garrison | Discovered new exit (range 10) 8450 | -8/Garrison | Triggered checkpoint 8482 | -8/Garrison | Rescued a captive Derelict 8733 | -8/Garrison | Garrison Relay disabled 9031 | -8/Garrison | Entered Materials 9031 | -8/Materials | Accompanied by 1 ally 9431 | -8/Materials | First assault squad dispatched 9517 | -8/Materials | Core integrity fell below 50% 10887 | -8/Materials | Discovered new exit (range 16) 11564 | -8/Materials | Identified exit to Garrison 11564 | -8/Materials | Entered Garrison 11770 | -8/Garrison | Triggered checkpoint 11780 | -8/Garrison | Garrison Relay disabled 11873 | -8/Garrison | P-60 Hacker assimilated allied F5-AX7(l) 11905 | -8/Garrison | Triggered checkpoint 11912 | -8/Garrison | Triggered checkpoint 12000 | -8/Garrison | Triggered checkpoint 12135 | -8/Garrison | Triggered checkpoint 12151 | -8/Garrison | Garrison Relay disabled 12264 | -8/Garrison | Discovered new exit (range 8) 12276 | -8/Garrison | Learned Factory security intel 12563 | -8/Garrison | Build established: Scavenger-Gunner 12628 | -8/Garrison | Destroyed 7 combat bots 12753 | -8/Garrison | Triggered checkpoint 12796 | -8/Garrison | Garrison Relay disabled 12835 | -8/Garrison | Discovered new exit (range 15) 13076 | -8/Garrison | Triggered checkpoint 13088 | -8/Garrison | Core integrity fell below 20% 13113 | -8/Garrison | Garrison Relay disabled 13206 | -8/Garrison | Discovered new exit (range 10) 13465 | -8/Garrison | Entered Factory 13465 | -7/Factory | Evolved 2 slots: Utility x2 13865 | -7/Factory | First assault squad dispatched 13938 | -7/Factory | Identified exit to Garrison 13938 | -7/Factory | Entered Garrison 14085 | -7/Garrison | Garrison Relay disabled 14201 | -7/Garrison | Triggered checkpoint 14218 | -7/Garrison | Triggered checkpoint 14304 | -7/Garrison | Triggered checkpoint 14329 | -7/Garrison | Garrison Relay disabled 14355 | -7/Garrison | Discovered new exit (range 14) 14428 | -7/Garrison | Phase Generator disabled 14548 | -7/Garrison | Triggered checkpoint 14616 | -7/Garrison | Triggered checkpoint 14837 | -7/Garrison | Discovered new exit (range 14) 14900 | -7/Garrison | Triggered checkpoint 15034 | -7/Garrison | Build established: Gunner 15045 | -7/Garrison | Discovered new exit (range 9) 15087 | -7/Garrison | Garrison Relay disabled 15217 | -7/Garrison | Entered Factory 15472 | -7/Factory | Identified exit to Lower Caves 15617 | -7/Factory | First assault squad dispatched 15713 | -7/Factory | Discovered new exit (range 8) 16458 | -7/Factory | Build established: Scavenger-Gunner 16498 | -7/Factory | Destroyed 10 combat bots 16845 | -7/Factory | Garrison activated, responded to threat 16886 | -7/Factory | Destroyed 7 combat bots 16894 | -7/Factory | Build established: Gunner 16906 | -7/Factory | Identified exit to Garrison 16906 | -7/Factory | Entered Garrison 17354 | -7/Garrison | Triggered checkpoint 17450 | -7/Garrison | Garrison Relay disabled 17455 | -7/Garrison | Triggered checkpoint 17699 | -7/Garrison | Build established: Scavenger-Gunner 17821 | -7/Garrison | Discovered new exit (range 10) 18071 | -7/Garrison | Triggered checkpoint 18115 | -7/Garrison | Lost 5 allies 18264 | -7/Garrison | Discovered new exit (range 9) 18353 | -7/Garrison | Build established: Scavenger-Tank 18387 | -7/Garrison | Phase Generator disabled 18687 | -7/Garrison | Discovered new exit (range 13) 18839 | -7/Garrison | Garrison Relay disabled 18853 | -7/Garrison | Garrison Relay disabled 18892 | -7/Garrison | Triggered checkpoint 18974 | -7/Garrison | Rescued a captive Derelict 18975 | -7/Garrison | Rescued a captive Derelict 19092 | -7/Garrison | Entered Factory 19092 | -6/Factory | Accompanied by 2 allies 19092 | -6/Factory | Evolved 2 slots: Propulsion x1, Utility x1 19213 | -6/Factory | Identified exit to Garrison 19234 | -6/Factory | Build established: Scavenger-Gunner 19433 | -6/Factory | Spotted B-75 Beast 19554 | -6/Factory | Garrison activated, responded to threat 19695 | -6/Factory | Discovered new exit (range 12) 19792 | -6/Factory | First assault squad dispatched 19893 | -6/Factory | Garrison activated, responded to threat 19929 | -6/Factory | Identified exit to Garrison 19929 | -6/Factory | Entered Garrison 20120 | -6/Garrison | DAS Turret deployed 20137 | -6/Garrison | Spotted B-75 Beast 20158 | -6/Garrison | Destroyed B-75 Beast 20233 | -6/Garrison | Triggered checkpoint 20267 | -6/Garrison | Triggered checkpoint 20428 | -6/Garrison | Build established: Scavenger-Tank 20492 | -6/Garrison | Discovered new exit (range 8) 20575 | -6/Garrison | Triggered checkpoint 20713 | -6/Garrison | Spotted B-75 Beast 20745 | -6/Garrison | Destroyed B-75 Beast 20774 | -6/Garrison | Lost 5 parts (1n2u2w) 20799 | -6/Garrison | Triggered checkpoint 20816 | -6/Garrison | Discovered new exit (range 6) 20905 | -6/Garrison | Build established: Scavenger-Gunner 21077 | -6/Garrison | Triggered checkpoint 21143 | -6/Garrison | Triggered checkpoint 21213 | -6/Garrison | Garrison Relay disabled 21239 | -6/Garrison | Triggered checkpoint 21370 | -6/Garrison | Discovered new exit (range 12) 21513 | -6/Garrison | Triggered checkpoint 21586 | -6/Garrison | Discovered new exit (range 9) 21635 | -6/Garrison | Triggered checkpoint 21658 | -6/Garrison | Garrison Relay disabled 22460 | -6/Garrison | Attempted to access garrison exit controls, blocked by remote lockdown 22588 | -6/Garrison | Entered Factory 22588 | -6/Factory | Accompanied by 2 allies 22614 | -6/Factory | Found Hvy. Insulated Plating 22618 | -6/Factory | Found Hvy. Insulated Plating 22622 | -6/Factory | Found Hvy. Insulated Plating 22690 | -6/Factory | Build established: Scavenger-Skirmisher 22716 | -6/Factory | Identified exit to Garrison 22716 | -6/Factory | Entered Garrison 22716 | -6/Garrison | Accompanied by 1 ally 22860 | -6/Garrison | Triggered checkpoint 22975 | -6/Garrison | Triggered checkpoint 22975 | -6/Garrison | Triggered checkpoint 23016 | -6/Garrison | Destroyed 10 combat bots 23049 | -6/Garrison | Triggered checkpoint 23081 | -6/Garrison | Destroyed 7 combat bots 23119 | -6/Garrison | Lost 4 parts (4w) 23170 | -6/Garrison | Triggered checkpoint 23342 | -6/Garrison | Triggered checkpoint 23364 | -6/Garrison | Discovered new exit (range 10) 23444 | -6/Garrison | Garrison Relay disabled 23600 | -6/Garrison | Triggered checkpoint 23666 | -6/Garrison | Lost 5 parts (2n1u2w) 23832 | -6/Garrison | Discovered new exit (range 8) 23941 | -6/Garrison | Phase Generator disabled 24019 | -6/Garrison | Build established: Scavenger-Tank 24374 | -6/Garrison | Discovered new exit (range 5) 24441 | -6/Garrison | Triggered checkpoint 24479 | -6/Garrison | Garrison Relay disabled 24583 | -6/Garrison | Entered Factory 24583 | -5/Factory | Evolved 2 slots: Utility x1, Weapon x1 24644 | -5/Factory | Identified exit to Upper Caves 24883 | -5/Factory | First assault squad dispatched 24973 | -5/Factory | Entered Upper Caves 24980 | -5/Upper Caves | Met a Warlord Commander 24981 | -5/Upper Caves | Learned location of Warlord (-5) 24982 | -5/Upper Caves | Warlord Commander delivered Encrypted Comm Array 24983 | -5/Upper Caves | Found Encrypted Comm Array 25133 | -5/Upper Caves | Learned location of 1 exit from Factory 25286 | -5/Upper Caves | Attracted the attention of an 0b10 checkpoint 25405 | -5/Upper Caves | Attracted the attention of an 0b10 outpost 25651 | -5/Upper Caves | Discovered new exit (range 12) 25686 | -5/Upper Caves | Entered another Upper Caves area 25686 | -5/Upper Caves | Accompanied by 2 allies 25718 | -5/Upper Caves | Discovered new exit (range 45) 25763 | -5/Upper Caves | Ambushed by wild Derelicts 25857 | -5/Upper Caves | Encountered a Warlord checkpoint 26053 | -5/Upper Caves | Discovered new exit (range 30) 26113 | -5/Upper Caves | Entered Warlord 26113 | -5/Warlord | Accompanied by 4 allies 26166 | -5/Warlord | System corruption cleaned by Quarantine Array 26271 | -5/Warlord | Discovered new exit (range 71) 26337 | -5/Warlord | Found Prototype Processor 26337 | -5/Warlord | Identified Exp. Armor Integrity Analyzer 26350 | -5/Warlord | Found Prototype Device 26350 | -5/Warlord | Identified Exp. Phase Shifter 26374 | -5/Warlord | Found Prototype Reactor 26572 | -5/Warlord | Found Prototype Special Weapon 26572 | -5/Warlord | Identified RU-N14's Throwing Claymores v3 26661 | -5/Warlord | DAS Turret deployed 26728 | -5/Warlord | Found RU-N14's Throwing Claymores v3 26731 | -5/Warlord | Found RU-N14's Throwing Claymores v3 26770 | -5/Warlord | Visited the Vortex Lab 26783 | -5/Warlord | Warlord's base attacked by MAIN.C 26790 | -5/Warlord | Found Prototype Energy Cannon 26790 | -5/Warlord | Identified Vortex Driver 27126 | -5/Warlord | Warlord forces counterattacked 27201 | -5/Warlord | Lost 12 allies 27445 | -5/Warlord | Spotted Executioner 27458 | -5/Warlord | Warlord base infiltrated, sounded retreat 27564 | -5/Warlord | Found Prototype Processor 27564 | -5/Warlord | Identified Exp. Core Analyzer 27570 | -5/Warlord | Found Prototype Device 27570 | -5/Warlord | Identified Adv. Kinecellerator 27604 | -5/Warlord | Met Warlord 27694 | -5/Warlord | Lost 3 allies 27698 | -5/Warlord | Spotted Striker 27772 | -5/Warlord | Entered Proximity Caves 28031 | -4/Proximity Caves | Attracted the attention of an 0b10 checkpoint 28193 | -4/Proximity Caves | Learned 8 Research zone layouts 28762 | -4/Proximity Caves | Discovered new exit (range 6) 28844 | -4/Proximity Caves | Entered Factory 28844 | -4/Factory | Evolved 2 slots: Power x1, Propulsion x1 28845 | -4/Factory | Identified exit to Upper Caves 28846 | -4/Factory | Identified Vortex Chain Reactor 28886 | -4/Factory | Build established: Scavenger-Gunner 29771 | -4/Factory | Sucked down chute 29771 | -4/Factory | Entered Waste 29786 | -4/Waste | EMP discharged 29786 | -4/Waste | System corruption reached 10% 29804 | -4/Waste | Spotted C-40 Crusher 29820 | -4/Waste | Destroyed C-40 Crusher 29821 | -4/Waste | Spotted C-40 Crusher 29826 | -4/Waste | Spotted C-40 Crusher 29829 | -4/Waste | Destroyed C-40 Crusher 29831 | -4/Waste | Destroyed C-40 Crusher 29858 | -4/Waste | Found Unknown Protection 29858 | -4/Waste | Identified Damper Plating 29861 | -4/Waste | Spotted C-40 Crusher 29867 | -4/Waste | Spotted C-40 Crusher 29868 | -4/Waste | Destroyed C-40 Crusher 29877 | -4/Waste | Destroyed C-40 Crusher 29886 | -4/Waste | EMP discharged 29903 | -4/Waste | Spotted C-40 Crusher 29925 | -4/Waste | Crushed by Compactor (0 parts destroyed, 1 dropped) 29928 | -4/Waste | Crushed by Compactor (0 parts destroyed, 1 dropped) 29931 | -4/Waste | Destroyed C-40 Crusher 29986 | -4/Waste | EMP discharged 30038 | -4/Waste | Discovered new exit (range 12) 30067 | -4/Waste | Entered Factory 30421 | -4/Factory | Discovered new exit (range 12) 30747 | -4/Factory | Unchained authorized (6S-H0T) 30762 | -4/Factory | Identified exit to Garrison 30762 | -4/Factory | Entered Garrison 30844 | -4/Garrison | Triggered checkpoint 30887 | -4/Garrison | Garrison Relay disabled 31000 | -4/Garrison | DAS Turret deployed 31006 | -4/Garrison | Triggered checkpoint 31017 | -4/Garrison | Spotted B-86 Titan 31042 | -4/Garrison | Destroyed B-86 Titan 31110 | -4/Garrison | Triggered checkpoint 31171 | -4/Garrison | Destroyed 15 combat bots 31250 | -4/Garrison | Discovered new exit (range 13) 31294 | -4/Garrison | Triggered checkpoint 31323 | -4/Garrison | Garrison Relay disabled 31462 | -4/Garrison | Triggered checkpoint 31516 | -4/Garrison | Triggered checkpoint 31525 | -4/Garrison | Heavy support dispatched to Factory 31624 | -4/Garrison | Discovered new exit (range 9) 31696 | -4/Garrison | Garrison Relay disabled 31700 | -4/Garrison | Garrison Relay disabled 31715 | -4/Garrison | Garrison Relay disabled 31717 | -4/Garrison | Garrison Relay disabled 31823 | -4/Garrison | Phase Generator disabled 31846 | -4/Garrison | Discovered new exit (range 95) 31846 | -4/Garrison | Discovered new exit (range 24) 31846 | -4/Garrison | Discovered new exit (range 32) 31874 | -4/Garrison | Triggered checkpoint 32001 | -4/Garrison | Build established: Scavenger-Tank 32063 | -4/Garrison | H-XX Assembler disabled 32172 | -4/Garrison | Triggered checkpoint 32206 | -4/Garrison | Garrison Relay disabled 32350 | -4/Garrison | Build established: Scavenger-Gunner 32421 | -4/Garrison | Garrison Relay disabled 32509 | -4/Garrison | Entered Factory 33009 | -4/Factory | First assault squad dispatched 33034 | -4/Factory | Unchained authorized (6S-H0T) 33778 | -4/Factory | Build established: Scavenger-Tank 33855 | -4/Factory | Discovered new exit (range 10) 33891 | -4/Factory | Destroyed 6S-H0T 33895 | -4/Factory | Found 6S-H0T's SS Cartridge 33990 | -4/Factory | Lost 7 parts (2n1u4w) 34099 | -4/Factory | Core integrity fell below 50% 34170 | -4/Factory | Core integrity fell below 20% 34195 | -4/Factory | Entered Research 34195 | -3/Research | Evolved 2 slots: Propulsion x1, Utility x1 34196 | -3/Research | Identified exit to Armory 34197 | -3/Research | Lost 23 parts (3p9n4u7w) 34355 | -3/Research | Build established: Mutant 34546 | -3/Research | Spotted B-86 Titan 34580 | -3/Research | Core integrity fell below 50% 34595 | -3/Research | Core integrity fell below 20% 34612 | -3/Research | Destroyed by G-73 Enforcer with Phase Gun Last Messages --------------- 34589_ Xenon Bombardment Thruster destroyed. 34589_ Penetrated by Slug. 34589_ Dropped Hvy. Machine Gun. 34593_ Penetrated by Slug. 34594_ Acquired 6 matter. 34596_ Knocked back. 34596_ Penetrated by Slug. 34596_ Slug penetrates Reinforced Barrier. 34596_ Acquired 36 matter. 34599_ O-16 Technician: "IFF HANDSHAKE FAILED. SECURING TERMINAL." 34602_ K-01 Serf destroyed. 34602_ Knocked back. 34604_ Acquired 23 matter. 34605_ K-01 Serf collects debris. 34610_ Acquired Prototype Reactor. 34610_ Identified Hvy. Antimatter Reactor. 34610_ Faulty integration triggers heat surge (+450). 34611_ Dropped Faulty Hvy. Antimatter Reactor. Map ----- +----------------------------------------------------+ | ?????????????????????????????????????## ## | | ????????????????????????????????????## # | | ????????????????????????????????????# ## | | ????????????????????????????????????# # | | ????????????????????????????????????# %% # | | ????????????????????????????????????# % ## | | ??????????????????????????????####### * # | | ??????????????????????????????# ! # % ## | | ??????????????????????????????# # % # | | ??????????????????????????????# # % # | | ??????????????????????????????# ### ## | | ??????????????????????????????# # #### ###? | | ??????????????????????????????# + [ #???# #?? | | ??????????????????????????????# # #????##?? | | ??????????????????????????????# #% #???????? | | ??????????????????????????????# ## ##???????? | | ??????????????????????????????# ## T#???????? | | ??????????????????????????????# ## #???????? | | ??????????????????????????????# ##% ##???????? | | ??????????????????????????????######## s"########? | | ???????????????????w??????????##????# +? | | ???????????????????s??????????# ????# Y # | | ???????????????????s??????????# ???# / | | ??????????????????hs??????????# ???# % * # | | ????????????????????########### ??# = #### #? | | ??????????????????h?# @* # ??# = [#??# #? | | ??????????????????h?# # ?# g=#??# #? | | ??????????????????x?# ; # #??# #? | | ???????????????????h# ; #g #??# #? | | ??##############????# !# o#g ####+#+## | | ??# #????# """ ; g # | | ??# #????# """ # ; # | | ??# "" #????# """ ;* ; # """ " | | ??# "" """ # ######+#########; BB# """ " | | ??# "" """ # x ! BB# """ " | | ??# S """ + % # | | ??# "" """ # " | | ??# "" """ # # """ " | | ??# "" # # """ " | | ??# # # """ " | | ??# # # | | ??# + # | | ??#####+######## =! ]]! ######### | | ??????# ###????# =! ]]! ??????# | | ????###+""####?# !! ]!! #?????# | | ????# #?# ########################?????# | | ????# #?# #?????????????############???# | | ????# #?# ############### ????# | | ????# #?# # ????# | | ????# #?# # """ ????# | +----------------------------------------------------+ Best States ------------- Heat Dissipation 94 Energy Generation 55 Energy Capacity 770 Matter Stores 450 Matter Capacity 450 Sight Range 16 Terrain Scan Density 10 Armor Coverage 1600 Resistance: KI 20 Resistance: EM 90 Weapon Cycling 30 Evasion (%) 50 Targeting Accuracy 8 Core Analysis 8 Armor Integrity Analysis 50 Recoil Reduction 5 Kinecelleration 50 Offensive Hacking 12 Authchip Count 1 Item Schematics ----------------- None Robot Schematics ------------------ None Fabricated ------------ Nothing Repaired ---------- Lgt. Treads | 52% | -10/Materials Studied --------- Lgt. Deuterium Engine | -8/Materials | Hacked Lgt. Treads | -8/Materials | Hacked Arm. Treads | -8/Materials | Hacked Gauss Rifle | -7/Factory | Hacked Coil Gun | -7/Factory | Hacked KE Penetrator | -4/Factory | Hacked Alien Tech Used ----------------- None Achievements -------------- Bigger And Badder Bullet Installation Deadly Precision Hydra I Like You, Cogmind Let Me Out Of Here Sixth Sense Tank Life The Better Part Of Valor Challenges ------------ None Game ------ Seed TerrabombMissileExtractor Manual? 0 Play Time 03:59:54 Cumulative 521.2 hours Start 2025.11.16 @ 18:22:33 End 2025.11.20 @ 03:02:57 Sessions 11 Manual Loads 0 Difficulty Rogue Special Mode None Game No. 228 Rogue 135 Adventurer 41 Explorer 52 Win Type - Total 58 Types 27/6/10/1/1/2/8/1/1/1 Lore% 96 Gallery% 92 Achievement% 63 Wizard Run 0 Options --------- Layout 2 ASCII 0 Keyboard 0 Movement Mouse Keybinds 1 Fullscreen 1 Font 32/Tamsyn Map View 50x44 Zoom Use 0% Tactical HUD 1 Map Filters NONE Filters NONE Steam 1 RUN: 95c30e3b-b178-49cc-8eb0-d62a7baa33de